bitfinex/quotes_BTCUSD_20250515
["timestamp","ask_amount","ask_price","bid_price","bid_amount"]
[1747323636002,0.09989192,102780.0,102770.0,1.34585807]
[1747323636889,0.09989192,102780.0,102770.0,1.13913807]
[1747323637079,0.11539192,102780.0,102770.0,1.34585807]
[1747323637267,0.09989192,102780.0,102770.0,1.34585807]
[1747323639583,0.13259192,102780.0,102770.0,1.34585807]
[1747323639790,0.09989192,102780.0,102770.0,1.34585807]
[1747323640391,0.11639192,102780.0,102770.0,1.34585807]
[1747323640594,0.09989192,102780.0,102770.0,1.34585807]
[1747323641868,0.0997118,102780.0,102770.0,1.37715807]
[1747323647728,0.0997118,102780.0,102770.0,1.34585807]
[1747323647900,0.1149118,102780.0,102770.0,1.34585807]
[1747323648100,0.1149118,102780.0,102770.0,1.34525807]
[1747323648503,0.0997118,102780.0,102770.0,1.34525807]
[1747323648729,0.1307118,102780.0,102770.0,1.13915514]
[1747323648931,0.1307118,102780.0,102770.0,1.34527514]
[1747323649352,0.1307118,102780.0,102770.0,1.13915514]
[1747323649555,0.1307118,102780.0,102770.0,1.34527514]
[1747323649991,0.1307118,102780.0,102770.0,1.30612484]
[1747323651026,0.1149118,102780.0,102770.0,1.30612484]
[1747323651576,0.1307118,102780.0,102770.0,1.30612484]
[1747323653007,0.0997118,102780.0,102770.0,1.30612484]
[1747323653912,0.1161118,102780.0,102770.0,1.30612484]
[1747323654117,0.11591967,102780.0,102770.0,1.30612484]
[1747323654494,0.13111967,102780.0,102770.0,1.30612484]
[1747323655523,0.13111967,102780.0,102770.0,0.67980484]
[1747323655771,0.13111967,102780.0,102770.0,1.30608484]
[1747323655943,0.69570709,102780.0,102770.0,0.94662496]
[1747323656150,1.0170592,102780.0,102770.0,0.22481587]
[1747323656353,1.09500532,102780.0,102770.0,0.22481587]
[1747323656704,1.09500532,102780.0,102770.0,0.21112]
[1747323656908,1.10954617,102780.0,102770.0,0.21112]
[1747323657118,0.76873626,102780.0,102770.0,0.21012]
[1747323657314,0.76873626,102780.0,102770.0,0.20612]
[1747323657542,0.76873626,102780.0,102770.0,0.20812]
[1747323657965,1.44954617,102780.0,102770.0,0.20612]
[1747323658798,1.37160005,102780.0,102770.0,0.20812]
[1747323658947,1.46990945,102780.0,102770.0,0.20812]
[1747323659355,1.37260005,102780.0,102770.0,0.20812]
[1747323661991,0.69098023,102780.0,102770.0,0.20812]
[1747323662117,1.03179014,102780.0,102770.0,0.20812]
[1747323662514,1.37260005,102780.0,102770.0,0.002]
[1747323662716,1.46990945,102780.0,102770.0,0.002]
[1747323662926,1.77305885,102780.0,102770.0,0.002]
[1747323663119,0.20433959,102770.0,102760.0,0.20627008]
[1747323663320,0.9119495,102770.0,102760.0,0.00011008]
[1747323663566,1.35006881,102770.0,102760.0,0.00011008]
[1747323663781,1.37460966,102770.0,102760.0,0.00011008]
[1747323663978,6.52191906,102770.0,102760.0,0.00011008]
[1747323664153,6.51668906,102770.0,102760.0,0.00011008]
[1747323664339,6.41937966,102770.0,102760.0,0.00011008]
[1747323664538,0.57615948,102760.0,102750.0,0.20620789]
[1747323664811,6.6109287,102760.0,102750.0,0.20620789]
[1747323664934,1.22011879,102760.0,102750.0,0.20620789]
[1747323665150,1.22011879,102760.0,102750.0,4.789e-05]
[1747323666144,0.06099214,102760.0,102750.0,0.43978319]
[1747323666350,0.82288274,102760.0,102750.0,0.43978319]
[1747323666555,1.14423192,102760.0,102750.0,0.21594025]
[1747323668810,0.60657379,102720.0,102710.0,0.4300562]
[1747323669395,0.60662159,102720.0,102710.0,0.2238562]
[1747323669622,0.6163566,102720.0,102710.0,0.4330562]
[1747323669781,0.60662159,102720.0,102710.0,0.4330562]
[1747323669989,0.23501168,102720.0,102710.0,0.4330562]
[1747323670194,0.25011168,102720.0,102710.0,0.4330562]
[1747323670393,0.25984669,102720.0,102710.0,0.4360562]
[1747323671104,0.8021263,102720.0,102710.0,0.41658495]
[1747323671309,0.8021263,102720.0,102710.0,0.43605639]
[1747323671900,0.8215966,102720.0,102710.0,0.43605639]
[1747323672077,0.81186197,102720.0,102710.0,0.43605648]
[1747323672279,0.81186197,102720.0,102710.0,0.43305648]
[1747323672513,0.00978214,102720.0,102710.0,0.45256754]
[1747323672718,0.23497168,102720.0,102710.0,0.45556754]
[1747323672934,0.23497168,102720.0,102710.0,0.45256754]
[1747323672935,0.22523677,102720.0,102710.0,0.45256754]
[1747323673083,0.2447065,102720.0,102710.0,0.45356754]
[1747323673289,0.21550214,102720.0,102710.0,0.45356754]
[1747323673532,4.78e-05,102720.0,102710.0,0.55087694]
[1747323673754,0.2057678,102720.0,102710.0,0.58187694]
[1747323673929,0.21550214,102720.0,102710.0,0.58187694]
[1747323674364,0.2057678,102720.0,102710.0,0.37563694]
[1747323674590,4.78e-05,102720.0,102710.0,0.92187694]
[1747323674803,4.78e-05,102720.0,102710.0,1.33117694]
[1747323675880,4.78e-05,102720.0,102710.0,0.99117694]
[1747323676841,4.78e-05,102720.0,102710.0,0.97547694]
[1747323677446,4.78e-05,102720.0,102710.0,0.99057694]
[1747323681230,4.78e-05,102720.0,102710.0,0.78433694]
[1747323681375,4.78e-05,102720.0,102710.0,0.98997694]
[1747323682655,0.00248159,102720.0,102710.0,0.93037021]
[1747323682883,0.37249567,102720.0,102710.0,0.94984146]
[1747323683183,0.37249567,102720.0,102710.0,0.9109724]
[1747323683184,0.55503148,102720.0,102710.0,0.9109724]
[1747323683344,0.55503148,102720.0,102710.0,0.004]
[1747323683345,1.13290187,102720.0,102710.0,0.004]
[1747323683550,1.13290187,102720.0,102710.0,0.20964]
[1747323683739,1.23810674,102720.0,102710.0,0.20964]
[1747323683937,1.14744272,102720.0,102710.0,0.20964]
[1747323684948,0.90663281,102720.0,102710.0,0.20964]
[1747323685807,1.58744272,102720.0,102710.0,0.20964]
[1747323685956,1.58744272,102720.0,102710.0,0.004]
[1747323686159,1.58744272,102720.0,102710.0,0.20964]
[1747323686381,1.24663281,102720.0,102710.0,0.20964]
[1747323686556,1.24663281,102720.0,102710.0,0.20864]
[1747323686954,1.02653196,102720.0,102710.0,0.400363]
[1747323687172,1.20055196,102720.0,102710.0,0.42957078]
[1747323687433,0.45059215,102720.0,102710.0,0.43057078]
[1747323687676,0.34450669,102720.0,102710.0,0.44030626]
[1747323688385,0.53921073,102720.0,102710.0,0.44030626]
[1747323688667,0.34450669,102720.0,102710.0,0.44030626]
[1747323689358,0.35424189,102720.0,102710.0,0.44030626]
[1747323689530,0.88975584,102720.0,102710.0,0.43057078]
[1747323690407,0.88975584,102720.0,102710.0,0.44030636]
[1747323691680,0.8800214,102720.0,102710.0,0.43057078]
[1747323692336,0.87028687,102720.0,102710.0,0.42083511]
[1747323692540,0.88578687,102720.0,102710.0,0.43057088]
[1747323692687,0.88578687,102720.0,102710.0,0.42083511]
[1747323692943,0.8967578,102720.0,102710.0,0.20664]
[1747323693077,1.23756771,102720.0,102710.0,0.20664]
[1747323695090,1.23756771,102720.0,102710.0,0.20668]
[1747323695512,1.57756771,102720.0,102710.0,0.20668]
[1747323696175,1.2365978,102720.0,102710.0,0.20668]
[1747323696378,1.2365978,102720.0,102710.0,0.41113915]
[1747323696729,1.21012611,102720.0,102710.0,0.43061097]
[1747323696899,1.21986131,102720.0,102710.0,0.43061116]
[1747323697136,1.21012668,102720.0,102710.0,0.4208752]
[1747323697332,1.20039196,102720.0,102710.0,0.4208752]
[1747323698264,1.19065695,102720.0,102710.0,0.41113915]
[1747323698602,1.18092175,102720.0,102710.0,0.20668]
[1747323698999,1.56797251,102720.0,102710.0,0.20668]
[1747323699611,1.2271626,102720.0,102710.0,0.20668]
[1747323699842,1.56797251,102720.0,102710.0,0.20668]
[1747323700247,1.2271626,102720.0,102710.0,0.20668]
[1747323701870,1.56797251,102720.0,102710.0,0.20668]
[1747323702287,1.56797251,102720.0,102710.0,0.001]
[1747323702504,1.66528191,102720.0,102710.0,0.001]
[1747323702838,1.66528191,102720.0,102710.0,0.20668]
[1747323703878,1.56797251,102720.0,102710.0,0.20668]
[1747323704084,1.66528191,102720.0,102710.0,0.20668]
[1747323705865,1.66528191,102720.0,102710.0,0.001]
[1747323706077,1.18080175,102720.0,102710.0,0.20668]
[1747323706711,1.1953426,102720.0,102710.0,0.20668]
[1747323707387,1.2104426,102720.0,102710.0,0.20668]
[1747323707808,1.55125251,102720.0,102710.0,0.001]
[1747323708022,1.69685168,102720.0,102710.0,0.001]
[1747323708232,1.66456191,102720.0,102710.0,0.001]
[1747323709309,1.76456191,102720.0,102710.0,0.001]
[1747323709748,0.00973709,102700.0,102690.0,0.63541804]
[1747323709872,0.7528836,102700.0,102690.0,0.62568]
[1747323710077,0.75044896,102700.0,102690.0,0.62568]
[1747323710518,0.76664896,102700.0,102690.0,0.62568]
[1747323710716,0.22397402,102690.0,102680.0,0.24528353]
[1747323711028,0.56478393,102690.0,102680.0,0.35905456]
[1747323711232,0.56478393,102690.0,102680.0,0.55451595]
[1747323711233,0.55504655,102690.0,102680.0,0.55451595]
[1747323711428,0.55504655,102690.0,102680.0,0.33371595]
[1747323711632,0.55504655,102690.0,102680.0,0.35319308]
[1747323711842,0.55504655,102690.0,102680.0,0.64839308]
[1747323712082,0.37002328,102690.0,102680.0,0.67313141]
[1747323712300,0.56478421,102690.0,102680.0,0.67313141]
[1747323712500,0.56478421,102690.0,102680.0,0.67613141]
[1747323712729,0.56478421,102690.0,102680.0,0.68013141]
[1747323713889,0.56478459,102690.0,102680.0,0.64117724]
[1747323714097,0.55504683,102690.0,102680.0,0.3022]
[1747323714311,0.56958768,102690.0,102680.0,0.3022]
[1747323714979,0.55504683,102690.0,102680.0,0.5568962]
[1747323715195,0.55504683,102690.0,102680.0,0.5569362]
[1747323715631,0.55504683,102690.0,102680.0,0.54419759]
[1747323715839,0.20449859,102690.0,102680.0,0.5539362]
[1747323716054,0.1000478,102720.0,102710.0,0.2239303]
[1747323716273,0.11951667,102720.0,102710.0,0.8810303]
[1747323716481,0.11951667,102720.0,102710.0,0.88774675]
[1747323716683,0.12925139,102720.0,102710.0,0.88774675]
[1747323716926,0.11951667,102720.0,102710.0,0.88774675]
[1747323717130,0.10978214,102720.0,102710.0,0.88774675]
[1747323717285,0.12925149,102720.0,102710.0,0.88774675]
[1747323717665,0.12051677,102720.0,102710.0,0.9783397]
[1747323717802,0.32555677,102720.0,102710.0,0.9783397]
[1747323718226,0.12051677,102720.0,102710.0,0.9783397]
[1747323718623,0.13025149,102720.0,102710.0,0.9783397]
[1747323719213,0.11078214,102720.0,102710.0,0.9783397]
[1747323719550,0.11078233,102720.0,102710.0,0.98505539]
[1747323719719,0.12051705,102720.0,102710.0,0.98505539]
[1747323719928,0.12051696,102720.0,102710.0,0.98505539]
[1747323720177,0.33469073,102720.0,102710.0,0.97531991]
[1747323720384,0.65603186,102720.0,102710.0,0.6412]
[1747323720531,0.65603186,102720.0,102710.0,0.83025905]
[1747323720735,0.65603186,102720.0,102710.0,0.85519482]
[1747323720936,0.65603186,102720.0,102710.0,0.88063049]
[1747323721535,0.46132782,102720.0,102710.0,0.88063049]
[1747323721731,0.65603186,102720.0,102710.0,0.88063049]
[1747323721936,0.45159243,102720.0,102710.0,0.89036597]
[1747323722142,0.47106188,102720.0,102710.0,0.89036597]
[1747323722564,0.48079698,102720.0,102710.0,0.89036597]
[1747323722923,0.12051696,102720.0,102710.0,0.89036597]
[1747323723126,0.13025187,102720.0,102710.0,0.89036597]
[1747323723527,0.66576677,102720.0,102710.0,0.86115905]
[1747323723733,0.66576677,102720.0,102710.0,0.87089482]
[1747323723899,0.65603186,102720.0,102710.0,0.641]
[1747323724105,0.86044472,102720.0,102710.0,0.6258]
[1747323731004,0.86044472,102720.0,102710.0,0.2052]
[1747323731804,0.85070971,102720.0,102710.0,0.2052]
[1747323734370,0.194723,102710.0,102700.0,0.6692089]
[1747323734584,0.55500454,102710.0,102700.0,0.9866784]
[1747323734721,0.55500454,102710.0,102700.0,0.99340144]
[1747323734921,0.57447579,102710.0,102700.0,1.00313796]
[1747323735117,0.01947097,102710.0,102700.0,1.00313749]
[1747323735363,0.23366579,102710.0,102700.0,1.00313749]
[1747323735522,0.23366579,102710.0,102700.0,0.99340106]
[1747323735725,0.23366579,102710.0,102700.0,0.99440106]
[1747323736152,0.23366579,102710.0,102700.0,1.00413749]
[1747323736355,0.23366579,102710.0,102700.0,0.97492792]
[1747323736550,0.23366579,102710.0,102700.0,0.98466435]
[1747323736728,0.5744757,102710.0,102700.0,0.98466435]
[1747323737158,0.23366579,102710.0,102700.0,0.98466435]
[1747323737616,0.22392983,102710.0,102700.0,0.98466435]
[1747323737857,0.22392974,102710.0,102700.0,0.98466435]
[1747323738059,0.2336657,102710.0,102700.0,0.98466435]
[1747323738549,0.64482943,102720.0,102710.0,0.21419463]
[1747323738772,0.11905001,102720.0,102710.0,0.24609473]
[1747323738990,0.09958066,102720.0,102710.0,0.35313961]
[1747323739406,0.09958066,102720.0,102710.0,0.54985549]
[1747323740020,0.10058066,102720.0,102710.0,0.54985549]
[1747323740231,0.09958066,102720.0,102710.0,0.54985549]
[1747323740437,0.09958066,102720.0,102710.0,0.55385549]
[1747323740774,0.09958066,102720.0,102710.0,0.55589549]
[1747323752062,0.09958066,102720.0,102710.0,0.76049549]
[1747323753571,0.09958066,102720.0,102710.0,1.10049549]
[1747323757422,0.09958066,102720.0,102710.0,1.11503634]
[1747323757635,0.09958066,102720.0,102710.0,2.42939634]
[1747323757636,0.06738066,102720.0,102710.0,2.42939634]
[1747323757839,0.07794612,102770.0,102760.0,0.22382135]
[1747323758014,0.07794612,102770.0,102760.0,0.94613075]
[1747323758155,0.07803931,102770.0,102760.0,0.95284663]
[1747323758989,9.319e-05,102770.0,102760.0,0.95284663]
[1747323759211,9.319e-05,102770.0,102760.0,0.95484663]
[1747323759769,9.319e-05,102770.0,102760.0,1.32604663]
[1747323759994,9.319e-05,102770.0,102760.0,1.73534663]
[1747323760269,9.319e-05,102770.0,102760.0,1.73634663]
[1747323760803,9.319e-05,102770.0,102760.0,1.73334663]
[1747323762003,9.319e-05,102770.0,102760.0,2.03334663]
[1747323762232,9.319e-05,102770.0,102760.0,2.03534663]
[1747323762786,9.319e-05,102770.0,102760.0,2.04988748]
[1747323763398,9.319e-05,102770.0,102760.0,2.04788748]
[1747323763580,9.319e-05,102770.0,102760.0,2.05188748]
[1747323763774,9.319e-05,102770.0,102760.0,2.05288748]
[1747323763956,9.319e-05,102770.0,102760.0,2.74358748]
[1747323765053,9.319e-05,102770.0,102760.0,2.75358748]
[1747323765257,9.319e-05,102770.0,102760.0,2.79274581]
[1747323765758,9.319e-05,102770.0,102760.0,2.78874581]
[1747323766209,9.319e-05,102770.0,102760.0,2.79474581]
[1747323766728,9.319e-05,102770.0,102760.0,2.79374581]
[1747323766932,9.319e-05,102770.0,102760.0,2.80674581]
[1747323767093,9.319e-05,102770.0,102760.0,2.60214581]
[1747323767292,9.319e-05,102770.0,102760.0,3.00078581]
[1747323767496,9.319e-05,102770.0,102760.0,2.99778581]
[1747323767839,9.319e-05,102770.0,102760.0,3.00778581]
[1747323768045,9.319e-05,102770.0,102760.0,3.01278581]
[1747323768470,9.319e-05,102770.0,102760.0,3.00678581]
[1747323768670,9.319e-05,102770.0,102760.0,3.01378581]
[1747323771860,0.09951967,102780.0,102770.0,0.57379957]
[1747323772023,0.09951967,102780.0,102770.0,0.73065137]
[1747323772804,0.09951967,102780.0,102770.0,0.73736725]
[1747323773007,0.09951967,102780.0,102770.0,0.74336725]
[1747323773253,0.09951967,102780.0,102770.0,0.75036725]
[1747323773704,1.1,102800.0,102790.0,0.56375602]
[1747323773819,1.1,102800.0,102790.0,1.17488575]
[1747323774437,1.1,102800.0,102790.0,1.18160163]
[1747323774850,1.1,102800.0,102790.0,1.18560163]
[1747323776138,1.1,102800.0,102790.0,1.18760163]
[1747323778022,1.1156,102800.0,102790.0,1.18088575]
[1747323778371,1.1311,102800.0,102790.0,1.18088575]
[1747323778810,1.1156,102800.0,102790.0,1.18088575]
[1747323778997,1.1,102800.0,102790.0,1.18088575]
[1747323779204,1.1,102800.0,102790.0,1.18753614]
[1747323780689,1.1155,102800.0,102790.0,1.18753614]
[1747323781158,1.1,102800.0,102790.0,1.18753614]
[1747323782017,1.1,102800.0,102790.0,1.48753614]
[1747323782885,1.1154,102800.0,102790.0,1.48753614]
[1747323783058,1.1306,102800.0,102790.0,1.48753614]
[1747323785378,1.1306,102800.0,102790.0,1.90761614]
[1747323786602,1.1,102800.0,102790.0,1.90761614]
[1747323786985,1.1,102800.0,102790.0,1.60761614]
[1747323792188,1.1,102800.0,102790.0,1.90761614]
[1747323793232,1.1,102800.0,102790.0,2.67489939]
[1747323793723,1.1,102800.0,102790.0,2.87849939]
[1747323793995,1.1,102800.0,102790.0,2.87449939]
[1747323794404,1.1,102800.0,102790.0,2.90690669]
[1747323794820,6e-05,102830.0,102820.0,0.57823158]
[1747323795033,0.0153429,102860.0,102850.0,0.22362548]
[1747323795241,0.0153429,102860.0,102850.0,1.30620612]
[1747323795440,0.0153429,102860.0,102850.0,1.32170612]
[1747323795642,0.0153429,102860.0,102850.0,1.34599057]
[1747323795818,0.0153429,102860.0,102850.0,1.29166527]
[1747323796173,0.0153429,102860.0,102850.0,1.3066846]
[1747323796369,0.0153429,102860.0,102850.0,1.36796905]
[1747323796569,0.0153429,102860.0,102850.0,1.37196905]
[1747323796779,0.01005102,102890.0,102880.0,0.22356028]
[1747323796982,0.01005102,102890.0,102880.0,0.52482968]
[1747323797183,0.01005102,102890.0,102880.0,0.53148007]
[1747323798374,0.01005102,102890.0,102880.0,0.53248007]
[1747323798538,0.01005102,102890.0,102880.0,0.53448007]
[1747323799377,0.000998,102930.0,102890.0,0.56598235]
[1747323799542,0.000998,102930.0,102920.0,0.56347339]
[1747323800178,0.000998,102930.0,102920.0,0.66741473]
[1747323800617,0.000998,102930.0,102920.0,0.66126127]
[1747323800825,0.41215592,102960.0,102950.0,0.22340827]
[1747323801040,0.42186805,102960.0,102950.0,0.94411767]
[1747323801259,0.43158037,102960.0,102950.0,0.94411767]
[1747323801467,0.27530937,102960.0,102950.0,0.0973094]
[1747323801669,0.94721706,102960.0,102950.0,0.5171494]
[1747323801878,0.94721706,102960.0,102950.0,0.7205094]
[1747323802074,1.49057706,102960.0,102950.0,0.6232]
[1747323802253,1.50511791,102960.0,102950.0,0.6232]
[1747323802754,1.50511791,102960.0,102950.0,0.41984]
[1747323802941,0.04031458,102930.0,102920.0,0.22395177]
[1747323803137,0.38112458,102930.0,102920.0,0.33097679]
[1747323803336,0.39083954,102930.0,102920.0,0.33097679]
[1747323803533,0.39083944,102930.0,102920.0,0.95417679]
[1747323803740,0.39083944,102930.0,102920.0,0.75081679]
[1747323803944,0.40055449,102930.0,102920.0,0.95417679]
[1747323804143,0.4005544,102930.0,102920.0,0.95417679]
[1747323804347,0.39083944,102930.0,102920.0,0.95417679]
[1747323804547,0.39083935,102930.0,102920.0,0.95417679]
[1747323804749,0.38583944,102930.0,102920.0,0.95517679]
[1747323805003,0.37612458,102930.0,102920.0,0.95517679]
[1747323805176,0.38583944,102930.0,102920.0,0.95517679]
[1747323805792,0.34080991,102930.0,102920.0,1.04517679]
[1747323805992,0.02621373,102940.0,102930.0,0.21373692]
[1747323806208,0.36994856,102950.0,102940.0,0.21371624]
[1747323806459,0.59948201,102950.0,102940.0,0.31102564]
[1747323806663,0.0165,102950.0,102940.0,0.32073937]
[1747323806785,0.35730991,102950.0,102940.0,0.32073937]
[1747323806987,0.3670227,102950.0,102940.0,0.32073937]
[1747323807615,0.3820227,102950.0,102940.0,0.32073937]
[1747323807812,0.37230991,102950.0,102940.0,0.32073937]
[1747323808036,0.0315,102950.0,102940.0,0.32073937]
[1747323808210,0.02710314,102960.0,102950.0,0.22340827]
[1747323808409,0.36791305,102960.0,102950.0,0.52403767]
[1747323808655,0.02710314,102960.0,102950.0,0.52403767]
[1747323809085,0.01150314,102960.0,102950.0,0.52403767]
[1747323810173,0.35231305,102960.0,102950.0,0.52399767]
[1747323810377,0.36791305,102960.0,102950.0,0.52399767]
[1747323810906,0.96653331,102960.0,102950.0,0.52399786]
[1747323811103,0.93739787,102960.0,102950.0,0.50457181]
[1747323811306,0.40233721,102960.0,102950.0,0.53371084]
[1747323811479,0.41204953,102960.0,102950.0,0.53371084]
[1747323811885,0.61601213,102960.0,102950.0,0.52399805]
[1747323812056,0.40233759,102960.0,102950.0,0.53371093]
[1747323812259,0.60630019,102960.0,102950.0,0.53371093]
[1747323812493,0.40233759,102960.0,102950.0,0.53371093]
[1747323813003,0.41205,102960.0,102950.0,0.53371093]
[1747323813230,0.9568226,102960.0,102950.0,0.51428507]
[1747323813434,0.9568226,102960.0,102950.0,0.53371131]
[1747323813640,0.9568226,102960.0,102950.0,0.54342429]
[1747323813770,0.39262489,102960.0,102950.0,0.54342373]
[1747323813983,0.60557692,102960.0,102950.0,0.54342373]
[1747323814171,0.61528905,102960.0,102950.0,0.54342373]
[1747323814377,0.62500137,102960.0,102950.0,0.54342373]
[1747323814593,0.6250008,102960.0,102950.0,0.54342373]
[1747323814996,0.43147312,102960.0,102950.0,0.54342373]
[1747323815401,0.62572397,102960.0,102950.0,0.54342373]
[1747323815637,0.40233721,102960.0,102950.0,0.54342373]
[1747323815800,0.40233721,102960.0,102950.0,0.29157846]
[1747323815801,0.61601213,102960.0,102950.0,0.29157846]
[1747323816107,0.94711038,102960.0,102950.0,0.51428526]
[1747323816352,0.94711038,102960.0,102950.0,0.5337115]
[1747323816527,0.75285896,102960.0,102950.0,0.54342429]
[1747323816724,0.41204915,102960.0,102950.0,0.54342429]
[1747323816932,0.3926248,102960.0,102950.0,0.54342429]
[1747323817132,0.37762489,102960.0,102950.0,0.54342429]
[1747323817613,0.38733702,102960.0,102950.0,0.5337115]
[1747323817828,0.75515925,102960.0,102950.0,0.54342429]
[1747323818023,0.06382711,102960.0,102950.0,0.54342429]
[1747323818223,0.41434934,102960.0,102950.0,0.54342429]
[1747323818421,0.01150314,102960.0,102950.0,0.54342429]
[1747323818680,0.37792471,102960.0,102950.0,0.54342429]
[1747323819065,0.38763655,102960.0,102950.0,0.54342429]
[1747323819825,0.38763646,102960.0,102950.0,0.54342429]
[1747323820035,0.02740314,102960.0,102950.0,0.54342429]
[1747323820171,0.36821305,102960.0,102950.0,0.54342429]
[1747323820373,0.3779248,102960.0,102950.0,0.54342429]
[1747323820581,0.37792471,102960.0,102950.0,0.54342429]
[1747323820785,0.39662609,102960.0,102950.0,0.54342429]
[1747323820990,0.04610434,102960.0,102950.0,0.54342429]
[1747323821193,0.38691425,102960.0,102950.0,0.54342429]
[1747323821994,0.37720259,102960.0,102950.0,0.54342429]
[1747323822401,0.03639268,102960.0,102950.0,0.54342429]
[1747323822618,0.36130259,102960.0,102950.0,0.54342429]
[1747323822817,0.36130259,102960.0,102950.0,0.96294429]
[1747323823227,0.38771425,102960.0,102950.0,0.96294429]
[1747323823432,0.397426,102960.0,102950.0,0.75966429]
[1747323823630,0.03719268,102960.0,102950.0,0.75966429]
[1747323823863,0.39742609,102960.0,102950.0,0.96290429]
[1747323824035,0.38771425,102960.0,102950.0,0.96290429]
[1747323824243,0.38771425,102960.0,102950.0,0.75966429]
[1747323824449,0.42323794,102960.0,102950.0,0.96294429]
[1747323824613,0.96801092,102960.0,102950.0,0.7499915]
[1747323824818,0.97772342,102960.0,102950.0,0.96294448]
[1747323825014,1.18084342,102960.0,102950.0,0.96294391]
[1747323825238,1.16141973,102960.0,102950.0,0.95323103]
[1747323825439,1.16141973,102960.0,102950.0,0.94351805]
[1747323825643,1.16141973,102960.0,102950.0,0.95323103]
[1747323826404,0.82060982,102960.0,102950.0,0.96294382]
[1747323826600,0.01942926,102930.0,102920.0,0.21423549]
[1747323826823,0.20312,102940.0,102930.0,0.2234513]
[1747323827043,0.20312,102940.0,102930.0,0.3207607]
[1747323827496,0.20312,102940.0,102930.0,0.5240007]
[1747323827700,0.5529237,102940.0,102930.0,0.5240007]
[1747323827952,0.56263724,102940.0,102930.0,0.3207607]
[1747323828486,0.5529237,102940.0,102930.0,0.5240007]
[1747323828973,0.21207379,102940.0,102930.0,0.5240007]
[1747323829875,0.00899379,102940.0,102930.0,0.5240007]
[1747323830071,0.00899379,102940.0,102930.0,0.5250007]
[1747323830393,0.10899379,102940.0,102930.0,0.5250007]
[1747323831824,0.10899379,102940.0,102930.0,0.5412007]
[1747323832033,0.10899379,102940.0,102930.0,0.5581007]
[1747323832686,0.1,102940.0,102930.0,0.5581007]
[1747323833377,0.1,102940.0,102930.0,0.5581407]
[1747323836452,0.1,102940.0,102930.0,0.3549007]
[1747323836653,0.1,102940.0,102930.0,0.5579807]
[1747323837057,0.1,102940.0,102930.0,0.8979807]
[1747323837261,0.1,102940.0,102930.0,0.93713903]
[1747323838014,0.1,102940.0,102930.0,0.96067988]
[1747323838331,0.1,102940.0,102930.0,0.95387298]
[1747323838744,0.1,102940.0,102930.0,0.95087298]
[1747323838949,0.1,102940.0,102930.0,0.95587298]
[1747323840077,0.1,102940.0,102930.0,0.95787298]
[1747323840286,0.1,102940.0,102930.0,0.95587298]
[1747323840443,0.1,102940.0,102930.0,0.95987298]
[1747323842387,0.01150314,102960.0,102950.0,0.25510827]
[1747323842616,0.01150314,102960.0,102950.0,1.2366315]
[1747323842768,0.01150314,102960.0,102950.0,1.20749229]
[1747323842966,0.01150314,102960.0,102950.0,1.54749229]
[1747323843588,0.01150314,102960.0,102950.0,1.54949229]
[1747323843767,0.01150314,102960.0,102950.0,1.56891815]
[1747323844157,0.01150314,102960.0,102950.0,2.002759]
[1747323844344,0.01150314,102960.0,102950.0,1.596719]
[1747323844519,0.01150314,102960.0,102950.0,2.693419]
[1747323844923,0.01150314,102960.0,102950.0,2.691419]
[1747323845141,0.01150314,102960.0,102950.0,2.695419]
[1747323845549,0.01150314,102960.0,102950.0,2.699419]
[1747323846443,0.01150314,102960.0,102950.0,2.695419]
[1747323846896,0.01150314,102960.0,102950.0,2.700419]
[1747323847280,0.01150314,102960.0,102950.0,2.696419]
[1747323847482,0.01150314,102960.0,102950.0,2.701419]
[1747323848384,0.01150314,102960.0,102950.0,2.712922]
[1747323848585,6e-05,102970.0,102960.0,0.99628343]
[1747323848844,6e-05,102970.0,102960.0,1.10813368]
[1747323849078,0.01005102,102990.0,102980.0,0.22334318]
[1747323849296,0.01005102,102990.0,102980.0,2.24956327]
[1747323849508,0.01005102,102990.0,102980.0,2.26410412]
[1747323849933,0.01005102,102990.0,102980.0,2.2645826]
[1747323850590,0.01005102,102990.0,102980.0,2.2765826]
[1747323851508,0.01005102,102990.0,102980.0,2.2785826]
[1747323853176,0.01005102,102990.0,102980.0,1.8726626]
[1747323853377,0.01005102,102990.0,102980.0,2.3075916]
[1747323853968,0.01005102,102990.0,102980.0,2.3076316]
[1747323855127,0.11005102,102990.0,102980.0,2.3076316]
[1747323855611,0.11005102,102990.0,102980.0,1.21913474]
[1747323856459,0.00594,103060.0,103050.0,0.02911094]
[1747323856669,0.04054,103060.0,103050.0,0.94274088]
[1747323857096,0.04054,103060.0,103050.0,0.73978088]
[1747323857311,0.05994475,103060.0,103050.0,0.32050088]
[1747323857529,0.05024252,103060.0,103050.0,0.52346088]
[1747323857743,0.06964802,103060.0,103050.0,0.52393936]
[1747323857954,0.05494475,103060.0,103050.0,0.52393936]
[1747323858152,0.05494475,103060.0,103050.0,0.32097936]
[1747323858369,0.05494475,103060.0,103050.0,0.52393936]
[1747323858693,0.06464736,103060.0,103050.0,0.52393936]
[1747323858952,0.07435006,103060.0,103050.0,0.32097936]
[1747323859152,0.05494465,103060.0,103050.0,0.52389936]
[1747323859408,0.06464726,103060.0,103050.0,0.32097936]
[1747323859587,0.06464726,103060.0,103050.0,0.29186842]
[1747323859588,0.59224296,103060.0,103050.0,0.29186842]
[1747323859890,0.79257712,103060.0,103050.0,0.51702788]
[1747323860121,0.4420646,103060.0,103050.0,0.71978788]
[1747323860329,0.4420646,103060.0,103050.0,0.94298002]
[1747323860550,0.46147029,103060.0,103050.0,0.95268357]
[1747323860758,0.46147029,103060.0,103050.0,0.96238703]
[1747323860931,0.46147029,103060.0,103050.0,0.94298011]
[1747323861134,0.25871029,103060.0,103050.0,0.94298011]
[1747323861343,0.24900768,103060.0,103050.0,0.94298011]
[1747323861573,0.58981759,103060.0,103050.0,0.94298011]
[1747323861813,0.57041162,103060.0,103050.0,0.91386842]
[1747323862024,0.22960171,103060.0,103050.0,0.93327618]
[1747323862232,0.04524223,103060.0,103050.0,0.95268319]
[1747323862437,0.06464735,103060.0,103050.0,0.95268319]
[1747323862636,0.07435024,103060.0,103050.0,0.95268319]
[1747323862863,0.08405323,103060.0,103050.0,0.74996319]
[1747323863114,0.27811579,103060.0,103050.0,0.95268319]
[1747323863745,0.08405408,103060.0,103050.0,0.95268319]
[1747323864079,0.27811579,103060.0,103050.0,0.95268338]
[1747323864284,0.6189257,103060.0,103050.0,0.74996338]
[1747323864508,0.58981769,103060.0,103050.0,0.00051848]
[1747323864865,1.28616845,103060.0,103050.0,0.00051848]
[1747323865066,1.38616845,103060.0,103050.0,0.00051848]
[1747323865608,0.00970713,103010.0,103000.0,0.33970472]
[1747323865810,0.56407835,103020.0,103010.0,0.2038635]
[1747323866006,0.36992942,103020.0,103010.0,0.32058744]
[1747323866201,0.40552876,103020.0,103010.0,0.32058744]
[1747323866625,0.60937257,103020.0,103010.0,0.31088031]
[1747323866774,0.25885666,103020.0,103010.0,0.0973094]